bitfinex-derivatives/quotes_SOLF0:USTF0_20250816
["timestamp","ask_amount","ask_price","bid_price","bid_amount"]
[1755363677405,8.4458,187.98,187.96,2.83]
[1755363677811,8.4461,187.97,187.96,2.83]
[1755363684013,3.13,187.97,187.96,2.83]
[1755363690627,8.4461,187.97,187.96,2.83]
[1755363693730,3.13,187.97,187.96,2.83]
[1755363694932,8.3759,187.98,187.96,2.83]
[1755363695433,5.3159,187.98,187.96,2.83]
[1755363695634,8.3759,187.98,187.96,2.83]
[1755363696032,3.06,188.04,187.98,3.06]
[1755363696336,7.20098644,188.03,188.01,3.06]
[1755363696536,8.3746,188.03,188.01,3.06]
[1755363696735,3.06,188.03,188.01,3.06]
[1755363696935,3.06,188.02,188.01,3.06]
[1755363697136,8.375,188.01,188.0,132.12216124]
[1755363697335,8.375,188.01,188.0,129.58]
[1755363698133,5.3158,187.98,187.97,2.54216124]
[1755363698336,8.3758,187.98,187.97,132.12216124]
[1755363698636,8.3758,187.98,187.97,5.60216124]
[1755363699432,5.3157,187.99,187.97,2.54216124]
[1755363699638,8.3757,187.99,187.98,3.06]
[1755363699937,5.3154,188.0,187.98,3.06]
[1755363700338,8.3754,188.0,187.98,3.06]
[1755363700936,3.06,188.0,187.98,3.06]
[1755363701628,3.06,188.0,187.98,5.3159]
[1755363701828,3.06,188.0,187.99,3.06]
[1755363702427,8.3753,188.0,187.99,3.06]
[1755363704136,3.06,187.99,187.98,3.06]
[1755363706043,3.06,188.01,187.98,3.06]
[1755363706233,4.43151069,188.07,187.98,3.06]
[1755363706442,3.06,188.05,187.98,3.06]
[1755363706640,4.14119245,188.04,187.98,5.3157]
[1755363706836,7.20119245,188.03,188.0,3.06]
[1755363707038,3.06,188.02,188.0,3.06]
[1755363707238,4.14054973,188.01,187.98,3.06]
[1755363707444,7.20053186,188.0,187.97,3.06]
[1755363707646,3.06,187.99,187.97,3.06]
[1755363709141,3.06,187.99,187.96,129.56]
[1755363709348,3.06,187.99,187.98,3.03]
[1755363710941,2.87,188.05,187.98,3.03]
[1755363711141,2.87,188.03,187.98,3.03]
[1755363711640,2.87,188.02,187.98,8.3457]
[1755363711935,2.87,188.02,187.99,3.03]
[1755363713147,2.87,188.06,187.99,3.03]
[1755363713446,2.87,188.04,188.0,3.03]
[1755363713643,4.14117169,188.03,188.0,3.03]
[1755363713942,2.87,188.02,188.0,3.03]
[1755363714948,2.87,188.02,187.99,3.03]
[1755363715143,4.43151069,188.07,187.99,3.03]
[1755363715144,2.87,188.06,187.99,3.03]
[1755363715345,9.02966079,188.05,187.99,3.03]
[1755363715544,2.87,188.03,187.99,3.03]
[1755363715950,5.3154,188.01,187.97,5.3162]
[1755363716151,2.87,188.0,187.97,5.3162]
[1755363716549,8.1855,188.0,187.98,3.03]
[1755363716747,7.30151069,188.06,187.97,3.03]
[1755363716945,2.87,188.04,187.97,3.03]
[1755363717144,8.186,187.99,187.97,3.03]
[1755363717640,5.3155,188.0,187.97,8.3461]
[1755363717847,4.43151069,188.06,187.98,3.03]
[1755363718040,2.87,188.01,187.98,3.03]
[1755363718245,5.3151,188.02,187.98,8.3458]
[1755363718448,8.1851,188.02,187.99,3.03]
[1755363718949,8.1851,188.02,188.0,3.03]
[1755363720050,5.3151,188.01,188.0,3.03]
[1755363720251,8.1851,188.01,188.0,3.03]
[1755363720452,2.87,188.01,188.0,3.03]
[1755363721154,2.87,188.01,187.97,3.03]
[1755363721754,5.3159,187.99,187.98,3.03]
[1755363722453,8.1859,187.99,187.98,3.03]
[1755363730156,5.3165,187.97,187.95,3.03]
[1755363730362,2.87,188.03,187.95,3.03]
[1755363730554,2.87,188.01,187.95,3.03]
[1755363730762,5.3165,187.97,187.95,3.03]
[1755363730961,8.1865,187.97,187.95,3.03]
[1755363732665,5.3165,187.97,187.95,3.03]
[1755363733659,8.1865,187.97,187.95,3.03]
[1755363734366,2.87,187.96,187.92,129.54]
[1755363734568,4.41551188,188.03,187.89,3.95576582]
[1755363734569,2.54216124,188.0,187.89,3.95576582]
[1755363734767,2.54216124,188.0,187.86,359.86216124]
[1755363734768,7.28551188,187.98,187.86,359.86216124]
[1755363735065,2.87,187.96,187.87,3.03]
[1755363735259,2.87,187.94,187.87,3.03]
[1755363735464,4.15399643,187.93,187.87,3.03]
[1755363735667,6.95767312,187.97,187.87,3.03]
[1755363735668,2.87,187.91,187.87,3.03]
[1755363736864,2.87,187.96,187.87,3.03]
[1755363737069,2.87,187.94,187.87,3.03]
[1755363741378,3.1,187.92,187.84,2.83]
[1755363742074,3.1,187.89,187.79,2.83]
[1755363742278,4.13693447,187.88,187.79,2.83]
[1755363742470,3.1,187.89,187.79,2.83]
[1755363742668,3.1,187.87,187.79,2.83]
[1755363743271,5.64216124,187.87,187.79,2.83]
[1755363743478,3.1,187.86,187.79,2.83]
[1755363743879,3.1,187.86,187.77,2.83]
[1755363744080,3.1,187.8,187.78,2.83]
[1755363744281,3.1,187.8,187.71,129.58]
[1755363744282,3.1,187.83,187.73,2.83]
[1755363744484,5.3216,187.79,187.73,8.1529]
[1755363744679,3.1,187.78,187.74,2.83]
[1755363745080,8.4219,187.78,187.74,2.83]
[1755363745284,2.54216124,187.84,187.72,2.83]
[1755363745285,3.1,187.83,187.72,2.83]
[1755363745679,5.3223,187.76,187.72,2.83]
[1755363745981,3.1,187.83,187.72,2.83]
[1755363746680,5.3224,187.76,187.72,2.83]
[1755363746983,3.1,187.75,187.72,2.83]
[1755363747180,2.54216124,187.81,187.72,2.83]
[1755363747390,3.1,187.73,187.69,2.54216124]
[1755363747685,2.54216124,187.81,187.69,2.54216124]
[1755363747885,3.1,187.8,187.7,2.83]
[1755363748383,3.1,187.76,187.72,2.83]
[1755363748687,3.1,187.75,187.72,2.83]
[1755363749193,3.1,187.83,187.73,2.83]
[1755363749482,3.1,187.83,187.76,2.83]
[1755363749674,3.1,187.87,187.79,2.83]
[1755363751280,5.64216124,187.87,187.68,2.83]
[1755363751586,5.3209,187.81,187.75,5.3225]
[1755363751882,5.3209,187.81,187.76,2.83]
[1755363752092,8.4209,187.81,187.76,2.83]
[1755363752280,3.1,187.8,187.76,2.83]
[1755363753381,5.3206,187.82,187.76,5.3221]
[1755363753685,3.1,187.81,187.77,2.83]
[1755363753883,3.1,187.86,187.8,2.54216124]
[1755363754084,3.1,187.85,187.81,2.83]
[1755363754385,3.1,187.87,187.81,2.83]
[1755363754590,5.3199,187.85,187.8,2.54216124]
[1755363754789,3.1,187.83,187.82,2.83]
[1755363754984,8.4199,187.85,187.8,2.54216124]
[1755363755286,8.4199,187.85,187.84,2.83]
[1755363755787,8.4199,187.85,187.8,2.54216124]
[1755363755788,3.1,187.83,187.8,2.83]
[1755363755989,3.1,187.82,187.81,2.83]
[1755363756489,3.1,187.83,187.81,2.83]
[1755363759792,3.1,187.83,187.8,2.83]
[1755363760692,3.1,187.87,187.82,2.83]
[1755363760891,134.61637529,187.94,187.82,2.83]
[1755363760892,3.1,187.93,187.83,2.54216124]
[1755363761192,3.1,187.89,187.85,2.83]
[1755363761688,3.1,187.89,187.85,8.1496]
[1755363761887,3.1,187.93,187.86,2.54216124]
[1755363762396,3.1,187.93,187.87,2.83]
[1755363762589,8.4174,187.93,187.87,2.83]
[1755363762790,130.22,187.94,187.88,5.3188]
[1755363762999,3.1,187.91,187.87,2.83]
[1755363763189,3.1,187.9,187.87,2.83]
[1755363763591,3.1,187.92,187.87,2.83]
[1755363763791,3.1,187.91,187.87,2.83]
[1755363763993,3.1,187.91,187.89,2.83]
[1755363764199,3.1,187.92,187.89,2.83]
[1755363764595,5.3172,187.94,187.9,2.83]
[1755363764894,3.1,187.97,187.91,2.83]
[1755363765298,3.1,187.93,187.9,2.83]
[1755363765597,5.3173,187.94,187.9,8.1482]
[1755363765803,8.4173,187.94,187.91,2.83]
[1755363766398,5.3173,187.94,187.91,2.83]
[1755363766600,3.1,187.92,187.9,2.83]
[1755363767904,8.4172,187.94,187.91,2.83]
[1755363768102,3.1,187.99,187.91,2.83]
[1755363768299,3.1,187.97,187.91,2.83]
[1755363768500,7.23515157,187.96,187.94,2.83]
[1755363768702,130.26,188.0,187.94,2.83]
[1755363768898,3.02,187.97,187.94,2.83]
[1755363769601,8.3365,187.97,187.94,2.83]
[1755363769797,3.02,187.97,187.94,2.83]
[1755363770500,3.02,187.96,187.94,2.83]
[1755363771501,8.3367,187.96,187.94,2.83]
[1755363773503,8.3367,187.96,187.93,5.3173]
[1755363773803,5.3167,187.96,187.94,3.0]
[1755363774005,8.3367,187.96,187.95,3.0]
[1755363776104,5.3167,187.96,187.95,3.0]
[1755363776903,8.3367,187.96,187.95,3.0]
[1755363777300,130.26,188.0,187.93,3.0]
[1755363777301,3.02,187.99,187.93,3.0]
[1755363779006,3.02,187.99,187.93,5.3174]
[1755363779201,3.02,187.99,187.94,3.0]
[1755363779401,3.02,187.99,187.93,3.0]
[1755363780809,3.02,187.99,187.93,8.3174]
[1755363781010,3.02,187.99,187.94,3.0]
[1755363781613,3.02,187.99,187.95,3.0]
[1755363783306,5.3167,187.96,187.95,3.0]
[1755363783610,8.3367,187.96,187.95,3.0]
[1755363786013,3.02,187.99,187.89,3.0]
[1755363786216,3.02,187.99,187.89,8.3183]
[1755363786512,5.3177,187.93,187.9,3.0]
[1755363786709,3.02,187.92,187.9,3.0]
[1755363787110,3.02,187.95,187.9,3.0]
[1755363787310,3.02,187.97,187.9,3.0]
[1755363787714,130.26,188.0,187.9,3.0]
[1755363787715,5.3172,187.94,187.9,5.318]
[1755363787916,5.3172,187.94,187.91,3.0]
[1755363788307,5.3172,187.94,187.91,8.3179]
[1755363788516,5.3172,187.94,187.92,3.0]
[1755363788918,8.3369,187.95,187.92,3.0]
[1755363789318,5.3169,187.95,187.92,3.0]
[1755363789516,3.02,187.94,187.92,3.0]
[1755363789815,5.3169,187.95,187.92,3.0]
[1755363790015,8.3369,187.95,187.92,3.0]
[1755363790618,3.02,187.94,187.92,3.0]
[1755363791516,8.3372,187.94,187.92,3.0]
[1755363791917,3.02,187.94,187.92,3.0]
[1755363795023,3.02,187.97,187.93,3.0]
[1755363795322,130.26,188.0,187.93,3.0]
[1755363795323,3.02,187.96,187.93,3.0]
[1755363795524,3.02,187.96,187.94,3.0]
[1755363796023,3.02,187.95,187.93,5.3173]
[1755363796624,3.02,187.95,187.94,3.0]
[1755363798524,8.3368,187.95,187.94,3.0]
[1755363799123,8.2168,187.95,187.92,8.4376]
[1755363799325,2.9,187.94,187.93,3.12]
[1755363799622,8.2171,187.94,187.93,3.12]
[1755363801023,8.2171,187.94,187.91,5.318]
[1755363801223,2.9,187.93,187.91,5.318]
[1755363801727,2.9,187.93,187.92,3.12]
[1755363802826,2.9,187.93,187.89,8.4383]
[1755363803023,2.9,187.99,187.9,3.12]
[1755363803223,2.9,187.97,187.9,3.12]
[1755363803528,2.9,187.95,187.9,3.12]
[1755363804829,2.9,187.95,187.84,3.12]
[1755363805021,2.9,187.93,187.86,3.12]
[1755363805424,2.9,187.93,187.87,5.3189]
[1755363805620,2.9,187.93,187.88,3.12]
[1755363806025,2.9,187.93,187.89,3.12]
[1755363807731,5.318,187.92,187.89,3.12]
[1755363807929,2.9,187.91,187.89,3.12]
[1755363808528,8.218,187.91,187.89,3.12]
[1755363809332,2.9,187.96,187.9,3.12]
[1755363809527,4.17853889,187.95,187.9,3.12]
[1755363809727,130.26,188.0,187.84,44.0]
[1755363809728,2.9,187.99,187.92,3.12]
[1755363809929,2.9,187.97,187.92,3.12]
[1755363810232,7.07907937,187.96,187.92,3.12]
[1755363810438,2.9,187.96,187.95,3.12]
[1755363810733,7.07873809,187.96,187.95,3.12]
[1755363814540,7.07873809,187.96,187.95,8.4368]
[1755363814843,2.9,187.96,187.95,8.4368]
[1755363819540,2.9,187.96,187.95,3.12]
[1755363819747,2.9,187.95,187.88,2.54216124]
[1755363819940,2.9,187.95,187.92,3.12]
[1755363820141,8.2177,187.92,187.91,3.12]
[1755363824445,2.9,187.94,187.91,3.12]
[1755363824649,2.9,187.95,187.91,3.12]
[1755363824941,8.2171,187.95,187.93,3.12]
[1755363825142,2.9,187.95,187.93,3.12]
[1755363825343,2.9,187.97,187.94,5.3169]
[1755363825547,4.17660101,187.96,187.95,3.12]
[1755363825749,2.9,187.97,187.95,3.12]
[1755363826044,4.39637529,188.03,187.94,5.3169]
[1755363826350,2.9,187.95,187.94,5.3169]
[1755363826551,2.9,188.01,187.95,3.12]
[1755363826745,2.9,187.99,187.96,3.12]
[1755363827049,2.9,187.97,187.96,3.12]
[1755363827357,7.07657051,187.97,187.96,3.12]
[1755363827749,12.39307051,187.97,187.96,3.12]
[1755363829347,12.39307051,187.97,187.94,8.4269]
[1755363829553,4.17657051,187.96,187.95,3.11]
[1755363830051,2.93,187.95,187.93,3.11]
[1755363830548,2.93,187.94,187.88,2.54216124]
[1755363830753,4.17606767,187.93,187.89,3.11]
[1755363830953,2.93,187.91,187.89,3.11]
[1755363831155,2.93,187.91,187.89,5.3185]
[1755363831353,2.93,187.91,187.9,3.11]
[1755363832960,4.17337323,187.91,187.88,3.11]
[1755363833257,2.93,187.9,187.88,3.11]
[1755363833457,5.3185,187.89,187.88,3.11]
[1755363833658,8.2485,187.89,187.88,3.11]
[1755363836261,7.32637529,187.94,187.85,3.11]
[1755363836460,7.32637529,187.94,187.71,27.7083864]
[1755363836461,2.93,187.92,187.83,3.11]
[1755363836666,8.2484,187.9,187.84,3.11]
[1755363836863,2.93,187.9,187.85,5.3196]
[1755363837161,2.93,187.9,187.86,3.11]
[1755363837862,4.39637529,187.95,187.86,3.11]
[1755363838164,5.3186,187.89,187.86,3.11]
[1755363838360,8.2486,187.89,187.86,3.11]
[1755363839462,5.318,187.91,187.87,5.3191]
[1755363839662,4.39637529,187.97,187.88,3.11]
[1755363839960,2.93,187.95,187.88,3.11]
[1755363840156,4.39637529,187.97,187.88,3.11]
[1755363840157,8.2485,187.9,187.88,3.11]
[1755363840360,4.39637529,187.97,187.88,3.11]
[1755363840656,2.93,187.9,187.88,3.11]
[1755363841058,2.93,187.96,187.89,3.11]
[1755363841258,2.93,187.94,187.86,7.86146124]
[1755363841459,2.93,187.92,187.88,3.11]
[1755363841664,8.2486,187.89,187.88,3.11]
[1755363841860,2.93,187.89,187.84,5.3199]
[1755363842063,2.93,187.89,187.87,3.11]
[1755363842466,2.93,187.87,187.85,3.11]
[1755363842668,6.93853653,187.95,187.84,3.11]
[1755363842870,2.93,187.86,187.84,3.11]
[1755363843768,6.93853653,187.95,187.84,3.11]
[1755363843769,2.93,187.88,187.84,3.11]
[1755363843973,2.93,187.87,187.84,3.11]
[1755363844272,8.2494,187.87,187.84,3.11]
[1755363846571,5.3189,187.88,187.85,3.11]
[1755363847165,8.2489,187.88,187.85,3.11]
[1755363848070,5.3191,187.87,187.85,3.11]
[1755363848463,8.2491,187.87,187.85,3.11]
[1755363849569,2.54216124,187.95,187.86,3.11]
[1755363849570,5.3189,187.88,187.86,3.11]
[1755363850162,8.2489,187.88,187.86,3.11]
[1755363856772,2.93,187.87,187.86,3.11]
[1755363861370,4.39637529,187.97,187.84,2.54216124]
[1755363861570,2.99,187.95,187.86,2.96]
[1755363861770,4.17169414,187.94,187.86,2.96]
[1755363861974,2.99,187.92,187.86,2.96]
[1755363862377,2.99,187.92,187.87,2.96]
[1755363865385,2.99,187.92,187.88,2.96]
[1755363866995,2.99,187.92,187.89,2.96]
[1755363867487,2.99,187.92,187.85,5.3196]
[1755363867687,2.99,187.92,187.86,2.96]
[1755363870189,5.319,187.88,187.86,2.96]
[1755363870688,8.309,187.88,187.86,2.96]
[1755363873291,4.39637529,187.96,187.84,2.54216124]
[1755363873292,4.39637529,187.96,187.87,5.50216124]
[1755363873591,73.76096318,188.0,187.88,2.96]
[1755363873592,2.99,187.94,187.88,2.96]
[1755363873792,2.99,187.92,187.88,2.96]
[1755363874386,8.3079,187.92,187.89,5.3185]
[1755363874587,8.3079,187.92,187.9,2.96]
[1755363875191,2.99,187.96,187.9,5.50216124]
[1755363875393,7.17510775,187.95,187.93,2.54216124]
[1755363875689,58.65862291,188.0,187.94,2.96]
[1755363875889,2.99,187.96,187.94,2.96]
[1755363876493,2.99,187.95,187.94,2.96]
[1755363877995,2.99,187.97,187.95,2.96]
[1755363878592,2.99,187.96,187.95,2.96]
[1755363879796,8.3066,187.96,187.95,2.96]
[1755363886697,5.3171,187.94,187.93,2.54216124]
[1755363886997,2.99,187.97,187.87,2.96]
[1755363887197,2.54216124,187.95,187.87,2.96]
[1755363887402,8.3088,187.88,187.87,2.96]
[1755363900821,2.99,187.88,187.84,2.95]
[1755363901026,2.99,187.88,187.85,2.95]
[1755363901724,5.3199,187.85,187.83,2.95]
[1755363901920,2.94,187.84,187.83,2.95]
[1755363902124,5.3199,187.85,187.83,2.95]
[1755363902325,8.2599,187.85,187.83,2.95]
[1755363902519,5.3199,187.85,187.83,2.95]
[1755363903122,8.2599,187.85,187.83,2.95]
[1755363906717,8.2595,187.86,187.84,2.95]
[1755363907523,2.54216124,187.95,187.84,2.95]
[1755363907729,2.94,187.93,187.84,2.95]
[1755363908523,5.3188,187.88,187.85,5.3195]
[1755363908718,8.2588,187.88,187.86,2.95]
[1755363910331,2.94,187.89,187.86,5.49216124]
[1755363910527,2.94,187.89,187.87,2.95]
[1755363911031,2.94,187.89,187.87,5.319]
[1755363911226,2.94,187.89,187.88,2.95]
[1755363913331,2.94,187.89,187.88,8.2688]
[1755363913932,2.94,187.89,187.88,2.95]
[1755363915530,8.2585,187.89,187.88,2.95]
[1755363918032,2.94,187.89,187.88,2.95]
[1755363918826,8.2585,187.89,187.88,2.95]
[1755363924742,8.2585,187.89,187.88,4.57728869]
[1755363927638,2.94,187.89,187.88,4.57728869]
[1755363928139,2.84,187.9,187.88,4.57728869]
[1755363928441,2.84,187.9,187.89,2.9]
[1755363930536,8.1583,187.9,187.88,4.52728869]
[1755363930748,2.84,187.89,187.88,4.52728869]
[1755363930940,2.84,187.89,187.88,1.62728869]
[1755363931546,2.84,187.89,187.88,4.52728869]
[1755363932248,8.1585,187.89,187.88,4.52728869]
[1755363933545,2.84,187.89,187.88,4.52728869]
[1755363934653,2.84,187.89,187.88,1.62728869]
[1755363935249,2.84,187.89,187.88,4.52728869]
[1755363935453,8.1581,187.91,187.89,2.9]
[1755363936050,2.84,187.9,187.89,2.9]
[1755363937151,5.3183,187.9,187.88,2.9]
[1755363937354,2.84,187.89,187.88,2.9]
[1755363941056,2.84,187.88,187.8,2.9]
[1755363941256,2.84,187.84,187.8,2.9]
[1755363942157,2.84,187.84,187.81,2.9]
[1755363942754,2.84,187.84,187.78,2.9]
[1755363942955,2.84,187.82,187.75,2.9]
[1755363943356,4.14981093,187.81,187.75,2.9]
[1755363943656,2.84,187.8,187.75,2.9]
[1755363944462,2.84,187.86,187.75,2.9]
[1755363944661,2.84,187.84,187.76,2.9]
[1755363944862,4.14418311,187.83,187.76,2.9]
[1755363945160,2.84,187.82,187.78,2.9]
[1755363945957,2.84,187.79,187.77,5.3217]
[1755363946665,2.84,187.79,187.78,2.9]
[1755363946861,2.84,187.8,187.78,2.9]
[1755363947162,5.3209,187.81,187.78,5.3216]
[1755363947367,5.3202,187.84,187.79,2.9]
[1755363947557,2.84,187.82,187.79,2.9]
[1755363947755,2.84,187.84,187.8,2.9]
[1755363948155,2.84,187.89,187.8,2.9]
[1755363948363,2.84,187.87,187.8,2.9]
[1755363948766,129.6,187.9,187.77,2.54497078]
[1755363948767,2.94,187.89,187.78,3.11]
[1755363948956,2.94,187.87,187.78,3.11]
[1755363949161,5.3203,187.83,187.79,5.3212]
[1755363949455,2.94,187.82,187.8,3.11]
[1755363949661,2.94,187.81,187.79,5.3212]
[1755363950363,2.94,187.81,187.8,3.11]
[1755363950862,5.3206,187.82,187.79,8.4312]
[1755363951062,5.3206,187.82,187.79,5.3212]
[1755363951263,5.3208,187.81,187.77,2.54497078]
[1755363951568,2.54497078,187.89,187.75,2.54497078]
[1755363951866,2.94,187.78,187.77,3.11]
[1755363954261,8.2612,187.8,187.77,3.11]
[1755363954461,2.94,187.79,187.77,3.11]
[1755363955058,5.3211,187.8,187.77,3.11]
[1755363955264,8.2611,187.8,187.77,3.11]
[1755363955465,2.94,187.85,187.77,3.11]
[1755363955665,2.94,187.85,187.75,2.54497078]
[1755363955666,2.94,187.85,187.79,3.11]
[1755363956065,2.94,187.83,187.8,3.11]
[1755363956265,129.6,187.9,187.8,3.11]
[1755363956466,2.94,187.88,187.8,3.11]
[1755363957070,5.32,187.84,187.81,3.11]
[1755363957268,2.94,187.83,187.81,3.11]
[1755363957966,2.94,187.83,187.82,3.11]
[1755363958158,2.94,187.91,187.82,3.11]
[1755363958358,5.3194,187.87,187.83,5.32]
[1755363958561,8.2594,187.87,187.84,3.11]
[1755363958760,2.94,187.87,187.84,3.11]
[1755363959163,2.94,187.86,187.84,3.11]
[1755363960473,2.94,187.85,187.78,2.54497078]
[1755363960670,2.94,187.85,187.79,3.11]
[1755363961166,8.2604,187.83,187.79,8.4314]
[1755363961367,8.2604,187.83,187.8,3.11]
[1755363961670,5.3206,187.82,187.8,3.11]
[1755363961862,8.2606,187.82,187.8,3.11]
[1755363962966,6.93731834,187.92,187.8,3.11]
[1755363963167,2.94,187.9,187.81,2.54497078]
[1755363963364,2.94,187.88,187.82,3.11]
[1755363963566,8.2596,187.86,187.82,3.11]
[1755363963767,8.2596,187.86,187.82,8.4303]
[1755363963963,8.2596,187.86,187.83,3.11]
[1755363965271,2.94,187.87,187.82,3.11]
[1755363965471,6.93731834,187.95,187.77,2.54497078]
[1755363965472,2.94,187.94,187.85,3.11]
[1755363965672,2.94,187.92,187.85,3.11]
[1755363966273,5.3188,187.89,187.85,3.11]
[1755363966468,8.2588,187.89,187.85,3.11]
[1755363966672,2.94,187.88,187.85,3.11]
[1755363966868,2.94,187.88,187.85,8.4296]
[1755363967066,5.3188,187.89,187.86,3.11]
[1755363967269,8.2588,187.89,187.86,3.11]
[1755363967770,5.3188,187.89,187.86,3.11]
[1755363967980,2.54497078,187.95,187.84,2.54497078]
[1755363968182,9.04781477,187.94,187.85,3.11]
[1755363968474,5.3191,187.88,187.85,3.11]
[1755363968674,2.94,187.87,187.86,3.11]
[1755363969174,8.2591,187.88,187.86,3.11]
[1755363969573,2.94,187.9,187.87,3.11]
[1755363969781,2.94,187.89,187.87,3.11]
[1755363970976,8.2586,187.89,187.87,3.11]
[1755363971280,8.2586,187.89,187.88,3.11]
[1755363972577,5.3188,187.88,187.86,3.11]
[1755363972782,5.48497078,187.95,187.84,5.65497078]
[1755363972984,2.94,187.93,187.84,2.54497078]
[1755363973183,8.2594,187.86,187.85,3.11]
[1755363973879,2.94,187.86,187.85,3.11]
[1755363976282,2.94,187.86,187.83,5.3202]
[1755363976283,6.93731834,187.95,187.82,3.11]
[1755363976482,2.94,187.83,187.82,3.11]
[1755363976680,2.94,187.91,187.82,3.11]
[1755363976982,2.94,187.91,187.85,3.11]
[1755363977181,5.3186,187.89,187.85,8.4295]
[1755363977385,8.2586,187.89,187.86,3.11]
[1755363980885,5.3188,187.88,187.86,3.11]
[1755363981078,8.1988,187.88,187.87,2.88]
[1755363987185,129.62,187.97,187.87,2.88]
[1755363987186,134.01234756,187.97,187.87,2.88]
[1755363987384,2.88,187.95,187.87,2.88]
[1755363987586,2.88,187.93,187.87,8.1991]
[1755363987884,2.88,187.93,187.88,2.88]
[1755363989185,2.88,187.96,187.88,2.88]
[1755363989382,2.88,187.94,187.88,2.88]
[1755363989686,5.3182,187.91,187.88,2.88]
[1755363989980,2.88,187.92,187.88,2.88]
[1755363990484,2.88,187.91,187.88,2.88]
[1755363990888,2.88,187.96,187.88,2.88]
[1755363991184,2.88,187.94,187.88,2.88]
[1755363991578,4.15536379,187.93,187.88,2.88]
[1755363991783,8.1981,187.91,187.88,8.1988]
[1755363991985,8.1981,187.91,187.89,2.88]
[1755363992684,2.88,187.9,187.87,7.86397078]
[1755363993189,2.88,187.9,187.89,2.88]
[1755363993489,8.1981,187.91,187.89,2.88]
[1755363994289,5.3181,187.91,187.87,7.86397078]
[1755363994485,2.88,187.9,187.88,2.88]
[1755363995082,5.3178,187.92,187.89,2.88]
[1755363995386,2.88,187.9,187.88,5.3187]
[1755363995890,2.88,187.9,187.89,2.88]
[1755363996986,5.318,187.91,187.89,2.88]
[1755363997191,8.198,187.91,187.89,2.88]
[1755363997593,2.88,187.91,187.89,2.88]
[1755363998489,2.88,187.91,187.9,2.88]
[1755363998689,5.3178,187.92,187.9,2.88]
[1755363998994,8.198,187.91,187.9,2.88]
[1755364003400,2.88,187.91,187.9,2.88]
[1755364003704,8.1977,187.92,187.9,2.88]
[1755364005401,5.3175,187.93,187.89,5.3185]